bitfinex/quotes_BTCUSD_20251117
["timestamp","ask_amount","ask_price","bid_price","bid_amount"]
[1763416998872,0.00597,92209.0,92193.0,0.01736094]
[1763416999076,0.02033445,92208.0,92193.0,0.01836094]
[1763416999273,0.02033445,92207.0,92193.0,0.01836094]
[1763416999488,0.02033445,92206.0,92193.0,0.01736094]
[1763416999686,0.02033445,92205.0,92193.0,0.01736094]
[1763416999892,0.02033445,92204.0,92193.0,0.01836094]
[1763417000097,0.02033445,92203.0,92193.0,0.01836094]
[1763417000308,0.02033445,92202.0,92193.0,0.68757707]
[1763417000532,0.00597,92209.0,92193.0,0.01636094]
[1763417000533,0.02033445,92201.0,92193.0,0.01636094]
[1763417000747,0.02033445,92200.0,92193.0,0.01736094]
[1763417000947,0.02033445,92199.0,92193.0,0.01736094]
[1763417001156,0.00597,92209.0,92193.0,0.01636094]
[1763417001157,0.02033445,92198.0,92193.0,0.01636094]
[1763417001327,0.02033445,92197.0,92193.0,0.01736094]
[1763417001528,0.02033445,92196.0,92193.0,0.01736094]
[1763417001730,0.02033445,92195.0,92193.0,0.00123094]
[1763417001929,0.02630445,92194.0,92193.0,0.00123094]
[1763417002148,0.02630445,92194.0,92193.0,0.00023094]
[1763417002149,0.02033445,92194.0,92193.0,0.00023094]
[1763417002378,0.02033445,92194.0,92193.0,0.00123094]
[1763417002675,0.02033445,92194.0,92193.0,0.00023094]
[1763417002872,0.02033445,92206.0,92193.0,0.00123094]
[1763417003024,0.02033445,92205.0,92196.0,0.67021613]
[1763417003226,0.02033445,92204.0,92196.0,0.67021613]
[1763417003421,0.02033445,92203.0,92196.0,0.67021613]
[1763417003622,0.02033445,92202.0,92196.0,0.67021613]
[1763417003912,0.02033445,92201.0,92196.0,0.67021613]
[1763417004085,0.02033445,92200.0,92196.0,0.67021613]
[1763417004288,0.18828364,92217.0,92194.0,0.01611]
[1763417004467,0.02033445,92210.0,92194.0,0.01611]
[1763417004719,0.01019525,92209.0,92196.0,0.001]
[1763417004924,0.01019525,92208.0,92200.0,0.67021613]
[1763417005156,0.01019525,92207.0,92200.0,0.67021613]
[1763417005306,0.01019525,92206.0,92200.0,0.67021613]
[1763417005507,0.01019525,92205.0,92200.0,0.67021613]
[1763417005719,0.10859296,92218.0,92200.0,0.67021613]
[1763417005965,0.03267399,92204.0,92200.0,0.67021613]
[1763417006121,0.04341874,92219.0,92200.0,0.67021613]
[1763417006455,0.03267399,92205.0,92200.0,0.67021613]
[1763417007528,0.03267399,92205.0,92195.0,0.67021613]
[1763417008113,0.03267399,92205.0,92200.0,0.001]
[1763417008389,0.03267399,92205.0,92195.0,0.67021613]
[1763417008726,0.03267399,92205.0,92195.0,0.67121613]
[1763417008916,0.03267399,92205.0,92195.0,1.35636357]
[1763417009128,0.03267399,92205.0,92195.0,1.34143226]
[1763417009738,0.323,92222.0,92195.0,0.67121613]
[1763417009739,0.21704367,92222.0,92195.0,0.67121613]
[1763417009972,0.03267399,92210.0,92200.0,0.67021613]
[1763417010148,0.03267399,92210.0,92200.0,0.67121613]
[1763417010352,0.03267399,92210.0,92200.0,0.67021613]
[1763417012891,0.03267399,92210.0,92200.0,0.6694065]
[1763417013070,0.323,92222.0,92200.0,0.6694065]
[1763417013313,0.323,92222.0,92210.0,0.6694065]
[1763417013488,0.03267253,92221.0,92210.0,0.6694065]
[1763417013688,0.03267253,92221.0,92205.0,0.01685]
[1763417013895,0.03267253,92221.0,92210.0,0.6694065]
[1763417014747,0.03267253,92221.0,92205.0,0.01685]
[1763417014748,0.03267253,92221.0,92200.0,0.6694065]
[1763417015364,0.03267253,92221.0,92210.0,0.6694065]
[1763417015566,0.03267253,92221.0,92198.0,0.03174]
[1763417015567,0.03267253,92221.0,92200.0,0.6694065]
[1763417016132,0.02042501,92220.0,92200.0,0.6694065]
[1763417016385,0.02042501,92219.0,92200.0,0.6694065]
[1763417016589,0.02042501,92218.0,92200.0,0.6694065]
[1763417016885,0.02042501,92217.0,92208.0,0.6694065]
[1763417017076,0.02042501,92216.0,92208.0,0.6694065]
[1763417017278,0.02042501,92215.0,92208.0,0.6694065]
[1763417017485,0.02042501,92214.0,92208.0,0.6694065]
[1763417017776,0.0306393,92213.0,92197.0,0.01685]
[1763417017982,0.0306393,92212.0,92200.0,0.6694065]
[1763417018141,0.0306393,92212.0,92193.0,0.01634094]
[1763417018142,0.0306393,92211.0,92193.0,0.00023094]
[1763417018342,0.0306393,92210.0,92193.0,0.00023094]
[1763417018543,0.323,92219.0,92200.0,0.6694065]
[1763417018544,0.0306393,92209.0,92200.0,0.6694065]
[1763417018768,0.0306393,92208.0,92199.0,0.6694065]
[1763417018944,0.0306393,92207.0,92199.0,0.6694065]
[1763417019163,0.0306393,92206.0,92200.0,0.01685]
[1763417019330,0.0306393,92205.0,92200.0,0.01685]
[1763417019740,0.03267253,92221.0,92200.0,0.01685]
[1763417019741,0.02042501,92204.0,92201.0,0.03174]
[1763417019945,0.323,92227.0,92201.0,0.04475504]
[1763417019946,0.02042501,92203.0,92201.0,0.04475504]
[1763417020090,0.02042501,92202.0,92201.0,0.04475504]
[1763417020290,0.03266765,92224.0,92201.0,0.04475504]
[1763417020291,0.03266765,92224.0,92218.0,0.01685]
[1763417020510,0.02041695,92223.0,92218.0,0.01685]
[1763417020712,0.02041695,92222.0,92219.0,0.03174]
[1763417020936,0.01685,92238.0,92220.0,0.01301236]
[1763417020937,0.02041695,92221.0,92220.0,0.01301236]
[1763417021338,0.02041695,92221.0,92220.0,0.06595236]
[1763417022201,0.01685,92238.0,92220.0,0.06595236]
[1763417022428,0.03058272,92237.0,92221.0,0.03174]
[1763417022600,0.03058272,92236.0,92228.0,0.6694065]
[1763417022805,0.02038848,92235.0,92228.0,0.6694065]
[1763417023002,0.02038848,92234.0,92229.0,0.01685]
[1763417023205,0.02038848,92233.0,92229.0,0.01685]
[1763417023435,0.02038848,92232.0,92229.0,0.01685]
[1763417023642,0.02038848,92231.0,92229.0,0.01685]
[1763417023840,0.02038848,92230.0,92229.0,0.01685]
[1763417024309,0.02038848,92230.0,92229.0,0.06979]
[1763417024742,0.02038848,92230.0,92229.0,0.03805]
[1763417027081,0.02038848,92230.0,92229.0,0.06979]
[1763417027354,0.02038848,92230.0,92229.0,0.03805]
[1763417028111,0.02038848,92230.0,92223.0,0.01685]
[1763417028311,0.02038848,92233.0,92223.0,0.01689371]
[1763417028512,0.02034837,92232.0,92223.0,0.04863371]
[1763417028713,0.02034837,92231.0,92223.0,0.04863371]
[1763417028874,0.02034837,92230.0,92223.0,0.01689371]
[1763417029073,0.02034837,92229.0,92224.0,0.10205502]
[1763417029322,0.03266193,92234.0,92232.0,0.01685]
[1763417029538,0.0056808,92242.0,92232.0,0.01685]
[1763417029746,0.05300584,92241.0,92233.0,0.05294]
[1763417029879,0.02034516,92240.0,92233.0,0.05294]
[1763417030090,0.03266068,92241.0,92232.0,0.01685]
[1763417030091,0.02034516,92239.0,92234.0,0.04475038]
[1763417030453,0.03266068,92241.0,92238.0,0.0212]
[1763417030647,0.0056808,92242.0,92240.0,0.0212]
[1763417030944,0.0056808,92242.0,92241.0,0.06979]
[1763417032708,0.0056808,92242.0,92241.0,0.07079]
[1763417033276,0.0056808,92242.0,92241.0,0.07179]
[1763417033510,0.0056808,92242.0,92241.0,0.07079]
[1763417033917,0.0056808,92242.0,92241.0,0.07179]
[1763417034089,0.03265268,92261.0,92250.0,0.00999999]
[1763417034292,0.0056808,92252.0,92251.0,0.6694065]
[1763417034496,0.0056808,92252.0,92250.0,0.01685]
[1763417034831,0.10859296,92291.0,92260.0,0.00999999]
[1763417034832,0.03264675,92274.0,92260.0,0.00999999]
[1763417035033,0.03264675,92274.0,92264.0,0.6694065]
[1763417035239,0.03264675,92274.0,92273.0,0.03805]
[1763417035592,0.00013142,92274.0,92273.0,0.03805]
[1763417035855,0.00581222,92274.0,92273.0,0.06979]
[1763417036056,0.00581222,92274.0,92273.0,0.03805]
[1763417036455,0.00581222,92274.0,92273.0,0.06979]
[1763417036604,0.00581222,92274.0,92273.0,0.07079]
[1763417036812,0.00581222,92274.0,92273.0,0.077869]
[1763417037013,0.00581222,92274.0,92273.0,0.07079]
[1763417038055,0.00581222,92274.0,92273.0,0.06979]
[1763417038475,0.00581222,92274.0,92273.0,0.07079]
[1763417039236,0.00581222,92274.0,92273.0,0.11420874]
[1763417039447,0.00581222,92274.0,92273.0,0.12721362]
[1763417039673,0.00581222,92274.0,92273.0,0.1259301]
[1763417040110,0.00581222,92274.0,92273.0,0.1269301]
[1763417040311,0.00581222,92274.0,92273.0,0.07079]
[1763417040761,0.00581222,92274.0,92273.0,0.01785]
[1763417040933,0.00581222,92274.0,92273.0,0.01885]
[1763417041249,0.00581222,92274.0,92273.0,0.001]
[1763417041441,0.24279527,92274.0,92273.0,0.001]
[1763417041644,0.56579527,92274.0,92273.0,0.001]
[1763417042133,0.56579527,92274.0,92273.0,0.002]
[1763417042366,0.34904886,92274.0,92273.0,0.001]
[1763417042782,0.323,92273.0,92250.0,0.00999999]
[1763417042977,0.02023664,92272.0,92250.0,0.00999999]
[1763417043184,0.323,92270.0,92250.0,0.00999999]
[1763417043390,0.02023664,92269.0,92250.0,0.00999999]
[1763417043589,0.02023664,92269.0,92250.0,0.96532804]
[1763417043805,0.02023664,92269.0,92251.0,0.1291578]
[1763417044438,0.00681222,92274.0,92251.0,0.03094]
[1763417044439,0.02023664,92268.0,92251.0,0.03094]
[1763417044657,0.02023664,92267.0,92251.0,0.03094]
[1763417044867,0.02023664,92266.0,92251.0,0.03094]
[1763417045071,0.02023664,92265.0,92251.0,0.03094]
[1763417045268,0.02023664,92264.0,92251.0,0.03094]
[1763417047193,0.02023664,92264.0,92251.0,0.04357309]
[1763417048019,0.02023664,92264.0,92229.0,0.02937407]
[1763417048020,0.323,92253.0,92226.0,0.01533]
[1763417048227,0.02023664,92252.0,92230.0,0.00999999]
[1763417048439,0.02023664,92251.0,92230.0,0.00999999]
[1763417048648,0.02023664,92250.0,92240.0,0.96532804]
[1763417048850,0.02023664,92250.0,92231.0,0.036567]
[1763417049057,0.02023664,92250.0,92232.0,0.03094]
[1763417049263,0.02023664,92250.0,92230.0,0.00999999]
[1763417049466,0.02023664,92250.0,92226.0,0.01533]
[1763417049672,0.02023664,92250.0,92230.0,0.00999999]
[1763417050697,0.02023664,92250.0,92230.0,0.97833899]
[1763417050904,0.02023664,92250.0,92249.0,0.01533]
[1763417051644,0.02023664,92250.0,92249.0,0.0662]
[1763417051845,0.02023664,92250.0,92245.0,0.01533]
[1763417052263,0.02023664,92250.0,92245.0,0.04627]
[1763417052463,0.16005556,92270.0,92245.0,0.04627]
[1763417052676,0.0101537,92269.0,92246.0,0.1011598]
[1763417052895,0.03265542,92253.0,92246.0,0.1011598]
[1763417053095,0.00581222,92274.0,92246.0,0.1011598]
[1763417053296,0.03265542,92267.0,92246.0,0.1011598]
[1763417053504,0.01015517,92266.0,92246.0,0.1011598]
[1763417053809,0.01015517,92265.0,92247.0,0.02412887]
[1763417054036,0.01015517,92265.0,92231.0,0.10859296]
[1763417054037,0.03265542,92267.0,92220.0,0.02937407]
[1763417054038,0.00999999,92250.0,92220.0,0.02937407]
[1763417054261,0.00999999,92250.0,92199.0,0.01533]
[1763417054262,0.2168569,92227.0,92201.0,0.02937407]
[1763417054458,0.01015517,92226.0,92201.0,0.00909741]
[1763417054753,0.01015517,92225.0,92202.0,0.03094]
[1763417054957,0.01015517,92224.0,92202.0,0.0439549]
[1763417055373,0.01015517,92224.0,92203.0,0.03094]
[1763417056622,0.01015083,92223.0,92203.0,0.03094]
[1763417056837,0.01533,92225.0,92203.0,0.03094]
[1763417057055,0.01015083,92224.0,92204.0,0.10016418]
[1763417057268,0.01533,92225.0,92204.0,0.10016418]
[1763417057524,0.01533,92225.0,92202.0,4.371e-05]
[1763417057733,0.01533,92225.0,92205.0,0.03094]
[1763417057956,0.01533,92225.0,92224.0,0.03491]
[1763417058217,0.04476144,92266.0,92224.0,0.03491]
[1763417058218,0.21678247,92259.0,92224.0,0.03491]
[1763417058422,0.33552149,92258.0,92224.0,0.03491]
[1763417058615,0.01014444,92257.0,92224.0,0.041503]
[1763417058873,0.03265908,92241.0,92224.0,0.041503]
[1763417059046,0.03265908,92241.0,92230.0,0.95532805]
[1763417059593,0.03265908,92241.0,92224.0,0.01523]
[1763417060050,0.03265908,92241.0,92230.0,0.95532805]
[1763417061633,0.03265908,92241.0,92224.0,0.01523]
[1763417061836,0.03265908,92241.0,92216.0,0.03102]
[1763417062059,0.03265908,92241.0,92220.0,0.95532805]
[1763417062638,0.03265908,92241.0,92221.0,0.04625]
[1763417062860,0.03265908,92241.0,92230.0,0.95532805]
[1763417063084,0.03365908,92241.0,92230.0,0.95532805]
[1763417063623,0.03265908,92241.0,92230.0,0.95532805]
[1763417064562,0.02028507,92240.0,92230.0,0.95532805]
[1763417064759,0.02028507,92239.0,92230.0,0.95532805]
[1763417065001,0.02028507,92238.0,92230.0,0.95532805]
[1763417065289,0.02028507,92237.0,92230.0,0.95532805]
[1763417065494,0.02028507,92236.0,92230.0,0.95532805]
[1763417065727,0.02028507,92235.0,92230.0,0.95532805]
[1763417065942,0.02028507,92234.0,92230.0,0.95532805]
[1763417066173,0.02028507,92233.0,92224.0,0.95532805]
[1763417066420,0.02028507,92232.0,92224.0,0.95532805]
[1763417066670,0.02028507,92231.0,92225.0,0.13077052]
[1763417066902,0.02028507,92230.0,92224.0,0.95532805]
[1763417067124,0.02028507,92229.0,92224.0,0.95532805]
[1763417067352,0.02028507,92228.0,92225.0,0.01301165]
[1763417067567,0.323,92257.0,92228.0,0.01968]
[1763417067774,0.03043986,92256.0,92228.0,0.01968]
[1763417067984,0.03043986,92255.0,92228.0,0.01968]
[1763417068195,0.03043986,92254.0,92228.0,0.01968]
[1763417068404,0.03043986,92253.0,92230.0,0.95532805]
[1763417068612,0.03043986,92252.0,92230.0,0.97212536]
[1763417068833,0.03043986,92251.0,92230.0,1.00314536]
[1763417069057,0.03044441,92250.0,92230.0,0.97212536]
[1763417069283,0.03044441,92249.0,92230.0,0.01679731]
[1763417069533,0.02029324,92248.0,92227.0,0.01301137]
[1763417069763,0.02029324,92247.0,92227.0,0.01301137]
[1763417069993,0.02029324,92246.0,92228.0,0.02961]
[1763417070245,0.02029324,92245.0,92228.0,0.02961]
[1763417070483,0.02029324,92244.0,92228.0,0.02961]
[1763417070711,0.1288862,92243.0,92216.0,4.371e-05]
[1763417070895,0.53987975,92217.0,92216.0,4.371e-05]
[1763417071100,0.34329324,92217.0,92216.0,4.371e-05]
[1763417071278,0.3534628,92217.0,92216.0,4.371e-05]
[1763417072108,0.0304628,92217.0,92216.0,4.371e-05]
[1763417072688,0.3534628,92217.0,92216.0,4.371e-05]
[1763417074121,0.39688154,92217.0,92216.0,4.371e-05]
[1763417075508,0.39688154,92217.0,92190.0,0.00619252]
[1763417075509,0.21691178,92204.0,92190.0,0.0037343]
[1763417075710,0.323,92201.0,92190.0,0.0037343]
[1763417075912,0.0304628,92200.0,92190.0,0.0037343]
[1763417076149,0.53991886,92201.0,92190.0,0.0037343]
[1763417076150,0.0304628,92199.0,92190.0,0.0037343]
[1763417076356,0.0304628,92198.0,92190.0,0.0037343]
[1763417076570,0.0304628,92197.0,92190.0,0.0037343]
[1763417076728,0.0304628,92196.0,92190.0,0.0037343]
[1763417076932,0.0304628,92195.0,92190.0,0.0037343]
[1763417077136,0.02029324,92194.0,92190.0,0.0037343]
[1763417077332,0.02029324,92193.0,92190.0,0.0037343]
[1763417077562,0.02029324,92192.0,92190.0,0.0037343]
[1763417077790,0.02029324,92191.0,92190.0,0.0037343]
[1763417083652,0.34329324,92191.0,92190.0,0.0037343]
[1763417084654,0.02029324,92191.0,92190.0,0.0037343]
[1763417088608,0.02029324,92191.0,92190.0,0.0246543]
[1763417089185,0.02029324,92191.0,92190.0,0.0037343]
[1763417089884,0.02029324,92191.0,92190.0,0.0542643]
[1763417094563,0.02029324,92191.0,92190.0,0.0552643]
[1763417094902,0.02029324,92191.0,92190.0,0.07662715]
[1763417095617,0.323,92228.0,92191.0,0.04341874]
[1763417095823,0.10859296,92243.0,92203.0,0.03587]
[1763417096024,0.02041342,92204.0,92203.0,0.03587]
[1763417096233,0.02041342,92204.0,92203.0,0.06548]
[1763417096536,0.02041342,92204.0,92203.0,0.03587]
[1763417096714,0.02041342,92204.0,92203.0,0.06548]
[1763417098059,0.02041342,92204.0,92203.0,0.06648]
[1763417098255,0.02041342,92204.0,92203.0,0.06748]
[1763417098431,0.02041342,92204.0,92203.0,0.03787]
[1763417098639,0.02041342,92204.0,92203.0,0.06748]
[1763417101778,0.02041342,92204.0,92203.0,0.11089874]
[1763417101987,0.0017265,92237.0,92204.0,0.04341874]
[1763417102186,0.01323305,92237.0,92236.0,0.03333]
[1763417102399,0.00183099,92237.0,92236.0,0.03333]
[1763417103453,0.01301733,92237.0,92220.0,0.76092182]
[1763417103673,0.01301733,92237.0,92210.0,0.76092182]
[1763417103674,0.323,92235.0,92210.0,0.76092182]
[1763417103891,0.323,92235.0,92220.0,0.76092182]
[1763417104115,0.323,92235.0,92213.0,0.04494]
[1763417104323,0.323,92235.0,92214.0,0.08058618]
[1763417104539,0.323,92235.0,92220.0,0.76092182]
[1763417104734,0.01301733,92237.0,92220.0,0.76092182]
[1763417105169,0.01301733,92237.0,92221.0,0.02993]
[1763417105844,0.01301733,92237.0,92227.0,0.76092182]
[1763417106086,0.01301733,92237.0,92221.0,0.02993]
[1763417106305,0.01301733,92237.0,92222.0,0.04294207]
[1763417106735,0.01301733,92237.0,92223.0,0.02993]
[1763417107619,0.01301733,92237.0,92224.0,0.01501]
[1763417108186,0.01301733,92237.0,92225.0,0.02993]
[1763417108336,0.01301733,92237.0,92236.0,0.01501]
[1763417108545,0.01301733,92237.0,92236.0,0.03333]
[1763417111240,0.01301733,92237.0,92236.0,0.06326]
[1763417112084,0.00183099,92237.0,92236.0,0.06326]
[1763417112296,0.01323305,92237.0,92224.0,0.01501]
[1763417112654,0.00183099,92237.0,92224.0,0.01501]
[1763417112859,0.00183099,92237.0,92236.0,0.001]
[1763417113060,0.00183099,92237.0,92236.0,0.002]
[1763417113221,0.00183099,92237.0,92236.0,0.001]
[1763417113222,0.32483099,92237.0,92236.0,0.001]
[1763417113424,0.34636596,92237.0,92236.0,0.001]
[1763417113646,0.323,92236.0,92225.0,0.01501]
[1763417114063,0.02029713,92235.0,92225.0,0.01501]
[1763417114275,0.02029713,92234.0,92220.0,0.76092182]
[1763417114492,0.02029713,92233.0,92210.0,0.76092182]
[1763417114703,0.02029713,92232.0,92213.0,0.0784964]
[1763417114924,0.0132174,92237.0,92213.0,0.0784964]
[1763417114925,0.02029713,92231.0,92213.0,0.0784964]
[1763417115115,0.02029713,92230.0,92213.0,0.0784964]
[1763417115330,0.02029713,92229.0,92213.0,0.0784964]
[1763417115550,0.02029713,92228.0,92213.0,0.0784964]
[1763417115758,0.02029713,92227.0,92213.0,0.0784964]
[1763417115974,0.02029713,92226.0,92213.0,0.01501]
[1763417116188,0.02029713,92225.0,92213.0,0.01501]
[1763417116399,0.02031654,92224.0,92213.0,0.01501]
[1763417116605,0.02031654,92223.0,92213.0,0.01501]
[1763417116839,0.3362174,92237.0,92213.0,0.01501]
[1763417116840,0.02031654,92222.0,92213.0,0.01501]
[1763417117054,0.3362174,92237.0,92213.0,0.01501]
[1763417117055,0.02031654,92221.0,92213.0,0.01501]
[1763417117203,0.02031654,92220.0,92213.0,0.01501]
[1763417117400,0.02031654,92219.0,92213.0,0.01501]
[1763417117621,0.02031654,92218.0,92213.0,0.01501]
[1763417117860,0.02031654,92217.0,92213.0,0.01501]
[1763417118115,0.02031654,92216.0,92213.0,0.01501]
[1763417118426,0.02031654,92215.0,92214.0,0.10855618]
[1763417118638,0.0132174,92237.0,92215.0,0.02797]
[1763417118845,0.03049974,92236.0,92216.0,0.01301292]
[1763417119055,0.02033316,92235.0,92220.0,0.76092182]
[1763417119300,0.02033316,92234.0,92221.0,0.01301222]
[1763417119499,0.02033316,92233.0,92221.0,0.02703222]
[1763417119700,0.02033316,92232.0,92221.0,0.02703222]
[1763417119902,0.02033316,92231.0,92221.0,0.02703222]
[1763417120063,0.02033316,92230.0,92221.0,0.02703222]
[1763417120279,0.02033316,92229.0,92221.0,0.02703222]
[1763417120484,0.02033316,92228.0,92221.0,0.02703222]
[1763417120688,0.02033316,92227.0,92221.0,0.02703222]
[1763417120847,0.02033316,92226.0,92221.0,0.02703222]
[1763417121049,0.02033316,92225.0,92221.0,0.02703222]
[1763417121249,0.02033316,92224.0,92221.0,0.02703222]
[1763417121498,0.02033316,92223.0,92221.0,0.02703222]
[1763417121717,0.02033316,92222.0,92221.0,0.02703222]
[1763417121931,0.02033316,92236.0,92221.0,0.01402]
[1763417122118,0.02033316,92236.0,92227.0,0.76092182]
[1763417122329,0.02033316,92236.0,92235.0,0.03265]
[1763417123553,0.02033316,92236.0,92235.0,0.03365]
[1763417124083,0.02033316,92236.0,92235.0,0.06162]
[1763417124606,0.02033316,92236.0,92235.0,0.03365]
[1763417124994,0.02033316,92236.0,92235.0,0.001]
[1763417125390,0.03051929,92236.0,92235.0,0.001]
[1763417125851,0.03051929,92236.0,92221.0,0.01402]
[1763417126062,0.02033316,92235.0,92221.0,0.01402]
[1763417126217,0.02033316,92234.0,92221.0,0.01402]
[1763417126426,0.02033316,92233.0,92221.0,0.01402]
[1763417126631,0.02033316,92232.0,92221.0,0.01402]
[1763417126834,0.02033316,92231.0,92221.0,0.01402]
[1763417127039,0.01328514,92237.0,92221.0,0.01402]
[1763417127040,0.1424639,92243.0,92222.0,0.10826118]
[1763417127216,0.01018748,92242.0,92230.0,0.76092182]
[1763417127422,0.01018748,92241.0,92230.0,0.76092182]
[1763417128840,0.01019036,92240.0,92230.0,0.76092182]
[1763417129006,0.01019036,92239.0,92230.0,0.76092182]
[1763417129211,0.01019036,92238.0,92230.0,0.76092182]
[1763417129421,0.01019036,92237.0,92230.0,0.76092182]
[1763417129644,0.01019036,92236.0,92230.0,0.76092182]
[1763417129853,0.01019036,92235.0,92230.0,0.76092182]
[1763417130017,0.01019036,92234.0,92227.0,0.01402]
[1763417130225,0.323,92238.0,92221.0,0.01402]
[1763417130432,0.01019374,92237.0,92225.0,0.01385]
[1763417130636,0.334149,92241.0,92225.0,0.01385]
[1763417130637,0.01019374,92236.0,92225.0,0.01385]
[1763417130835,0.01019374,92235.0,92225.0,0.01385]
[1763417131042,0.01019374,92235.0,92214.0,0.1479]
[1763417131043,0.01019374,92234.0,92214.0,0.16175]
[1763417131398,0.334149,92241.0,92214.0,0.01385]
[1763417131399,0.01019374,92233.0,92214.0,0.01385]
[1763417131695,0.011149,92241.0,92214.0,0.01385]
[1763417131696,0.01019374,92232.0,92214.0,0.01385]
[1763417131896,0.01019374,92231.0,92214.0,0.01385]
[1763417132099,0.01019374,92230.0,92214.0,0.01385]
[1763417132300,0.01019374,92229.0,92220.0,0.76092182]
[1763417132438,0.01019374,92228.0,92220.0,0.76092182]
[1763417132654,0.53983204,92238.0,92220.0,0.76092182]
[1763417132655,0.01019374,92227.0,92220.0,0.76092182]
[1763417132877,0.01019374,92226.0,92214.0,0.01385]
[1763417133072,0.01019374,92225.0,92214.0,0.01385]
[1763417133325,0.03266338,92233.0,92214.0,0.01385]
[1763417133516,0.01019584,92232.0,92214.0,0.04198]
[1763417133729,0.01019584,92231.0,92214.0,0.04198]
[1763417133959,0.01019584,92230.0,92214.0,0.04198]
[1763417134120,0.01019584,92229.0,92214.0,0.04198]
[1763417134306,0.01019584,92228.0,92214.0,0.04198]
[1763417134513,0.01019584,92227.0,92214.0,0.04198]
[1763417134717,0.01019584,92226.0,92214.0,0.04198]
[1763417134936,0.01019584,92225.0,92214.0,0.04198]
[1763417135134,0.55097355,92241.0,92214.0,0.04198]
[1763417135342,0.03266338,92231.0,92214.0,0.04198]
[1763417135501,0.01019548,92230.0,92214.0,0.04198]
[1763417135714,0.01019548,92229.0,92215.0,0.10366938]
[1763417135916,0.01019548,92228.0,92215.0,0.02813]
[1763417136167,0.01019548,92227.0,92215.0,0.02813]
[1763417136366,0.01019548,92226.0,92215.0,0.02813]
[1763417136596,0.03266338,92231.0,92215.0,0.02813]
[1763417136776,0.01019517,92230.0,92215.0,0.02813]
[1763417136935,0.01019517,92229.0,92215.0,0.02813]
[1763417137269,0.01019517,92228.0,92215.0,0.02813]
[1763417137472,0.01019517,92227.0,92215.0,0.02813]
[1763417137721,0.01019517,92226.0,92215.0,0.02813]
[1763417137878,0.03266338,92231.0,92215.0,0.02813]
[1763417138049,0.01019495,92230.0,92215.0,0.02813]
[1763417138244,0.01019495,92229.0,92215.0,0.02813]
[1763417138497,0.01019495,92228.0,92215.0,0.02813]
[1763417138704,0.01019495,92227.0,92215.0,0.02813]
[1763417138901,0.03266338,92231.0,92215.0,0.02813]
[1763417139222,0.03058446,92230.0,92215.0,0.02813]
[1763417139429,0.011149,92241.0,92220.0,0.95591322]
[1763417139430,0.03058446,92229.0,92220.0,0.95591322]
[1763417139581,0.02038964,92228.0,92226.0,0.10859296]
[1763417139762,0.0056808,92242.0,92240.0,0.03269]
[1763417139964,0.0056808,92242.0,92241.0,0.01884]
[1763417140163,0.02606703,92242.0,92241.0,0.01884]
[1763417140394,0.02606703,92242.0,92241.0,0.05997939]
[1763417140567,0.02606703,92242.0,92241.0,0.04697]
[1763417141664,0.02606703,92242.0,92241.0,0.04797]
[1763417141986,0.02606703,92242.0,92241.0,0.04697]
[1763417142491,0.02606703,92242.0,92241.0,0.04797]
[1763417143920,0.02606703,92242.0,92241.0,0.001]
[1763417145200,0.02606703,92242.0,92230.0,0.96976322]
[1763417145420,0.02038623,92241.0,92231.0,0.13084114]
[1763417145654,0.02038623,92240.0,92231.0,0.13084114]
[1763417145861,0.323,92238.0,92220.0,0.01385]
[1763417146067,0.34338623,92237.0,92220.0,0.01385]
[1763417146258,0.02038623,92236.0,92220.0,0.01385]
[1763417146474,0.02038623,92235.0,92220.0,0.01385]
[1763417146681,0.02038623,92234.0,92220.0,0.01385]
[1763417146915,0.02038623,92233.0,92220.0,0.01385]
[1763417147122,0.02038623,92240.0,92220.0,0.01385]
[1763417147123,0.02038623,92232.0,92220.0,0.01385]
[1763417147294,0.02038623,92231.0,92220.0,0.01385]
[1763417147519,0.02038623,92230.0,92220.0,0.01385]
[1763417147670,0.02038623,92229.0,92220.0,0.01385]
[1763417147868,0.02038623,92228.0,92220.0,0.01385]
[1763417148069,0.02038623,92227.0,92220.0,0.01385]
[1763417148302,0.323,92237.0,92220.0,0.01385]
[1763417148544,0.02037822,92236.0,92220.0,0.01385]
[1763417148746,2.0,92234.0,92212.0,0.02921814]
[1763417148970,0.323,92230.0,92212.0,0.02921814]
[1763417149123,0.23722068,92233.0,92211.0,0.02921814]
[1763417149124,0.21686825,92222.0,92211.0,0.02921814]
[1763417149322,0.323,92222.0,92210.0,0.02921814]
[1763417149524,0.323,92222.0,92194.0,0.02813]
[1763417149525,0.34337942,92221.0,92203.0,0.02921814]
[1763417149742,0.02037942,92220.0,92197.0,0.02921814]
[1763417150157,0.323,92216.0,92195.0,0.02921814]
[1763417150332,0.323,92216.0,92190.0,0.99881337]
[1763417150333,0.323,92214.0,92193.0,0.03094505]
[1763417150545,0.323,92211.0,92193.0,0.00172691]
[1763417150745,0.323,92209.0,92193.0,0.00172691]
[1763417151111,0.02037942,92208.0,92193.0,0.00172691]
[1763417151303,0.323,92201.0,92193.0,0.00172691]
[1763417151459,0.02037942,92200.0,92193.0,0.00172691]
[1763417151641,0.02037942,92199.0,92193.0,0.00216518]
[1763417151842,0.323,92197.0,92193.0,0.00216518]
[1763417152049,0.02037942,92196.0,92193.0,0.00216518]
[1763417152256,0.02037942,92195.0,92193.0,0.00216518]
[1763417152457,0.02037942,92194.0,92193.0,0.00216518]
[1763417153898,0.02034892,92194.0,92193.0,0.00216518]
[1763417154249,0.323,92206.0,92193.0,0.00216518]
[1763417154459,0.323,92201.0,92193.0,0.00216518]
[1763417154694,0.323,92198.0,92193.0,0.00216518]
[1763417154894,0.02034086,92197.0,92193.0,0.00216518]
[1763417155054,0.02034086,92196.0,92193.0,0.00216518]
[1763417155254,0.323,92198.0,92193.0,0.00216518]
[1763417155461,0.02033338,92197.0,92193.0,0.00216518]
[1763417155654,0.323,92198.0,92193.0,0.00216518]
[1763417155913,0.02033338,92197.0,92193.0,0.00216518]
[1763417156083,2.0,92204.0,92193.0,0.00216518]
[1763417156293,0.323,92198.0,92193.0,0.00216518]
[1763417156504,2.0,92199.0,92193.0,0.00216518]
[1763417156707,0.02032688,92198.0,92193.0,0.00216518]
[1763417156932,2.0,92199.0,92193.0,0.00216518]
[1763417157121,0.02032688,92198.0,92193.0,0.00216518]
[1763417157445,2.0,92199.0,92193.0,0.00216518]
[1763417157607,0.02032142,92198.0,92193.0,0.00216518]
[1763417157806,2.0,92199.0,92193.0,0.00216518]
[1763417158008,0.02032142,92198.0,92193.0,0.00216518]
[1763417158216,2.0,92199.0,92193.0,0.00216518]
[1763417158390,0.02031682,92198.0,92193.0,0.00216518]